{"text_format":"1","workbook":"xlsx","n_sheets":2,"sheets":["Erläuterung","Evaluation"],"not_rendered":{"charts":0,"images":4,"macros":1,"external_links":0,"defined_names":0,"comments":2,"pivot_tables":0},"unopened":[],"bounds":{"document_bytes":16777216,"sheet_cells":100000,"rows_first":2000,"rows_last":500,"rows_between":2000,"halvings":0,"cell_chars":16384,"cell_head_chars":4096},"cells_cut":0,"cells_raw":0,"read":"whole","date_system":"1900"}

{"sheet":"Erläuterung","index":0,"n_rows":19,"n_cols":2,"rows_kept":19,"cut":false,"hidden":false,"merged":[[1,1,9,1]]}
[]
[null,"HTC  Baukadervermittlung"]
[]
[]
[]
[]
[]
[]
[]
[]
[]
[]
[]
[]
[null,"Stellen-Evaluation   -    Entscheidungmatrix"]
[]
[null,"Mit dieser Entscheidungsmatrix stellt HTC seinen Kandidatinnen und Kandidaten ein Instrument zur Verfügung, mit welchem die Auswahl möglicher Arbeitgeber nach den verschiedenen Kriterien in der Entscheidungsfindung unterstützt werden können.\n\nDabei bleibt das Auswahlverfahren vollkommen flexibel auf die Bedürfnisse der stellensuchenden Person ausgerichtet!\n\nHTC empfiehlt lediglich:\nIn einem ersten Schritt die Gewichtung festzulegen (was ist für mich wichtig?)\nIn einem zweiten Schritt die Bewertung festzuhalten (wie empfinde ich den potenziellen Arbeitgeber?)\nIn einem dritten Schritt die gewichtete Beurteilung betrachten und mit der Kopf-/Bau-Meinung zu vergleichen!\n\nDas Instrument erhebt keinen Anspruch auf Vollständigkeit, unterstützt aber die Stellenselektion sicherlich in geeignetem Umfang!\n\n(c) HTC 2014"]
[]
[null,"Hinweis:\nZellen mit einer roten Ecke oben rechts enthalten einen Hinweis - mit der Maus über das Feld fahren und der Hinweis wird angezeigt!"]

{"sheet":"Evaluation","index":1,"n_rows":48,"n_cols":17,"rows_kept":48,"cut":false,"hidden":false,"merged":[[0,0,1,0],[0,1,1,1],[0,2,1,2],[0,12,1,12]]}
["Kategorie","Beurteilungspunkt","Gewichtung\n(1-5)","Bewertung (1-5)",null,null,null,"Beurteilung",null,null,null,null,{"$f":"+A1","v":"Kategorie"},"Gesamtübersicht"]
[null,null,null,"Unternehmen 1","Unternehmen 2","Unternehmen 3","Unternehmen 4",{"$f":"+D2","v":"Unternehmen 1"},{"$f":"+E2","v":"Unternehmen 2"},{"$f":"+F2","v":"Unternehmen 3"},{"$f":"+G2","v":"Unternehmen 4"},null,null,{"$f":"+H2","v":"Unternehmen 1"},{"$f":"+I2","v":"Unternehmen 2"},"Unternehmen 3","Unternehmen 4"]
["Unternehmen","Grösse des Unternehmens",null,null,null,null,null,{"$f":"+$C3*D3","v":0},{"$f":"+$C3*E3","v":0},0,0,null,{"$f":"+A3","v":"Unternehmen"},{"$f":"SUM(H3:H10)","v":0},{"$f":"SUM(I3:I10)","v":0},0,0]
[null,"Type des Unternehmens",null,null,null,null,null,{"$f":"+$C4*D4","v":0},0,0,0,null,{"$f":"+A11","v":"Kultur"},{"$f":"SUM(H11:H17)","v":0},{"$f":"SUM(I11:I17)","v":0},0,0]
[null,"Ruf/Image des Unternehmens",null,null,null,null,null,0,0,0,0,null,{"$f":"+A18","v":"Team/Position"},{"$f":"SUM(H18:H27)","v":0},{"$f":"SUM(I18:I27)","v":0},0,0]
[null,"Produkte/Dienstleistungen des Unternehmens",null,null,null,null,null,0,0,0,0,null,{"$f":"+A28","v":"Arbeitsplatz"},{"$f":"SUM(H28:H31)","v":0},{"$f":"SUM(I28:I31)","v":0},0,0]
[null,"Markposition des Unternehmens",null,null,null,null,null,0,0,0,0,null,{"$f":"+A32","v":"Reisetätigkeit"},{"$f":"SUM(H32:H33)","v":0},{"$f":"SUM(I32:I33)","v":0},0,0]
[null,"Wirschaftliche Lage des Unternehmens",null,null,null,null,null,0,0,0,0,null,{"$f":"+A34","v":"Karriere/Weiterentwicklung"},{"$f":"SUM(H34:H37)","v":0},{"$f":"SUM(I34:I37)","v":0},0,0]
[null,"Wachstumschancen des Unternehmens",null,null,null,null,null,0,0,0,0,null,{"$f":"+A38","v":"Work-Life-Balance"},{"$f":"SUM(H38:H42)","v":0},{"$f":"SUM(I38:I42)","v":0},0,0]
[null,"Innovationseindruck des Unternehmens",null,null,null,null,null,0,0,0,0,null,{"$f":"+A43","v":"Leistungen"},{"$f":"SUM(H43:H48)","v":0},{"$f":"SUM(I43:I48)","v":0},0,0]
["Kultur","Unternehmensphilosophie",null,null,null,null,null,0,0,0,0,null,"TOTAL",{"$f":"SUM(N3:N10)","v":0},{"$f":"SUM(O3:O10)","v":0},0,0]
[null,"Hierarchie-Modell",null,null,null,null,null,0,0,0,0]
[null,"Ethische Werte / Ethisches Verhalten",null,null,null,null,null,0,0,0,0]
[null,"Soziales Engagement",null,null,null,null,null,0,0,0,0]
[null,"Umweltfreundlichkeit",null,null,null,null,null,0,0,0,0]
[null,"Team-Kultur",null,null,null,null,null,0,0,0,0]
[null,"Familienfreundlichkeit",null,null,null,null,null,0,0,0,0]
["Team/Position","Grösse des Teams",null,null,null,null,null,0,0,0,0]
[null,"Art der Zusammenarbeit",null,null,null,null,null,0,0,0,0]
[null,"Arbeitsklima",null,null,null,null,null,0,0,0,0]
[null,"Altersstruktur",null,null,null,null,null,0,0,0,0]
[null,"Aufgabenbereich",null,null,null,null,null,0,0,0,0]
[null,"Führungsverantwortung",null,null,null,null,null,0,0,0,0]
[null,"Selbständigkeit",null,null,null,null,null,0,0,0,0]
[null,"Anteil Teamarbeit",null,null,null,null,null,0,0,0,0]
[null,"Abwechslungsreiche Tätigkeiten",null,null,null,null,null,0,0,0,0]
[null,"Umfeld",null,null,null,null,null,0,0,0,0]
["Arbeitsplatz","Stamm-Arbeitsplatz",null,null,null,null,null,0,0,0,0]
[null,"Infrastruktur am Arbeitsplatz",null,null,null,null,null,0,0,0,0]
[null,"Mobile Infrastruktur",null,null,null,null,null,0,0,0,0]
[null,"Distanz/Reisezeit",null,null,null,null,null,0,0,0,0]
["Reisetätigkeit","Regional/National/International",null,null,null,null,null,0,0,0,0]
[null,"Planbarkeit",null,null,null,null,null,0,0,0,0]
["Karriere/Weiterentwicklung","Aufstiegschancen",null,null,null,null,null,0,0,0,0]
[null,"Weiterbildungsmöglichkeiten",null,null,null,null,null,0,0,0,0]
[null,"Karriere- und Laufbahnplanung",null,null,null,null,null,0,0,0,0]
[null,"Arbeitsbereichs-Flexibilität",null,null,null,null,null,0,0,0,0]
["Work-Life-Balance","Arbeitszeiten",null,null,null,null,null,0,0,0,0]
[null,"Flexibilität Gestaltung Arbeitszeiten",null,null,null,null,null,0,0,0,0]
[null,"Urlaub",null,null,null,null,null,0,0,0,0]
[null,"Frei-Tage",null,null,null,null,null,0,0,0,0]
[null,"Vereinbarkeit Beruf + Familie",null,null,null,null,null,0,0,0,0]
["Leistungen","Vertrag (befristet/unbefristet)",null,null,null,null,null,0,0,0,0]
[null,"Gehalt",null,null,null,null,null,0,0,0,0]
[null,"Übliche Sozialleistungen",null,null,null,null,null,0,0,0,0]
[null,"Besondere Sozialleistungen",null,null,null,null,null,0,0,0,0]
[null,"Firmenwagen",null,null,null,null,null,0,0,0,0]
[null,"Andere Nebenleistungen",null,null,null,null,null,0,0,0,0]